Cogmind - Beta 15 @@@ ROGUE MODE // 2025.06.17 @ 17:52:42 Player: f3-rnm Result: Destroyed self with Enhanced Gamma Bomb Array Performance ------------- Evolutions (6) 3000 Regions Visited (16) 3200 Robots Destroyed (166) 830 Value Destroyed (8132) 8132 Prototype IDs (41) 820 Alien Tech Used (0) 0 Bonus (5861) 5861 TOTAL SCORE: 21843 Bonus ------- High Alert Combat Kills 2838 Follower Combat Kills 1587 Entered Garrisons 200 Used RIF Installer 1000 Registered with UFD 300 Met Optimus in HQ 500 Met Data Miner 300 Friendly Fire -864 Cogmind --------- Core Integrity 0/1150 Matter 38/300 Energy 200/520 System Corruption 51% Temperature Cool (0) Movement Walking (190) Ox1 Location -4/Factory Parts ------- > --- POWER (2) -------- Reinforced Fission Core Reinforced Fission Core > --- PROPULSION (4) --- Flexi-carbon Leg Flexi-carbon Leg Myomer Leg Myomer Leg > --- UTILITY (9) ------ Advanced Heat Sink Advanced Heat Sink (fused) Huge Storage Unit Quantum Capacitor Relay Coupler [NC] (12) Relay Coupler [Grunt] (27) Experimental System Guard > --- WEAPON (4) ------- Enhanced Gamma Bomb Array > --- INVENTORY (25) --- Reinforced Fission Core Light Antimatter Reactor Flexi-carbon Leg Flexi-carbon Leg Advanced Heat Sink Advanced Heat Sink Improved Sensor Array Advanced Weapon Cycler Improved Phase Shifter Relay Coupler [Proto] (9) Relay Coupler [Proto] (9) Relay Coupler [Proto] (9) Relay Coupler [Proto] (9) Quantum Rifle Quantum Rifle Compact HERF Cannon Compact HERF Cannon KE Penetrator Slug Cannon Improved Proton Missile Launcher Enhanced Gamma Bomb Array Hellfire Missile Launcher Botcube Peak State ------------ > --- POWER ------------ Reinforced Fission Core Reinforced Fission Core > --- PROPULSION ------- Flexi-carbon Leg Flexi-carbon Leg Flexi-carbon Leg Flexi-carbon Leg > --- UTILITY ---------- Advanced Heat Sink Advanced Heat Sink Advanced Heat Sink Advanced Heat Sink Huge Storage Unit Quantum Capacitor Relay Coupler [Grunt] Experimental System Guard > --- WEAPON ----------- Compact HERF Cannon Heavy Mass Driver Enhanced Gamma Bomb Array > --- INVENTORY -------- Reinforced Fission Core Light Antimatter Reactor Myomer Leg Myomer Leg Advanced Heat Sink Energy Well Improved Sensor Array Advanced Weapon Cycler Improved Phase Shifter Relay Coupler [NC] Relay Coupler [Proto] Relay Coupler [Proto] Relay Coupler [Proto] Relay Coupler [Proto] Quantum Rifle Quantum Rifle Compact HERF Cannon KE Penetrator Slug Cannon Improved Proton Missile Launcher Enhanced Gamma Bomb Array Hellfire Missile Launcher Advanced Remote Datajack Botcube [Rating: 126] Favorites ----------- Power Fission Core Engine Light Angular Momentum Engine Power Core Fission Core Reactor Light Antimatter Reactor Propulsion Flexi-carbon Leg Treads Light Treads Leg Flexi-carbon Leg Wheel Centrium Wheel Hover Unit Backup Propulsion III Utility Advanced Heat Sink Device Advanced Heat Sink Storage Large Storage Unit Processor Spectral Analyzer Hackware Advanced Hacking Suite Protection Hardened Medium Armor Plating Weapon Battle Rifle Energy Gun Dispersion Rifle Energy Cannon Compact HERF Cannon Ballistic Gun Battle Rifle Ballistic Cannon Slug Cannon Launcher Precision Grenade Launcher Special Weapon Advanced Remote Datajack Impact Weapon Powered Hammer Build | -11 -10 -10 -9 -6 -6 -6 -6 -5 -5 -5 -5 -4 -4 -4 -4 -4 ------- Run | Yrd Mat Sub Scr Fac Low Low Dat Pro Fac Was Fac Fac Was Fac Gar Fac Slots Evolved 12 | . . . . 8 . . . . 2 . . 2 . . . . Power 1 | . . . . . . . . . 1 . . . . . . . Propulsion 2 | . . . . 2 . . . . . . . . . . . . Utility 7 | . . . . 5 . . . . 1 . . 1 . . . . Weapon 2 | . . . . 1 . . . . . . . 1 . . . . Parts Attached 153 | 6 4 4 3 25 1 5 . . 9 1 29 7 10 5 39 5 Power 20 | 1 . 1 1 3 . . . . 3 . 3 . 1 1 6 . Engine 6 | 1 . 1 1 2 . . . . . . 1 . . . . . Core 8 | . . . . 1 . . . . 3 . 1 . 1 . 2 . Reactor 6 | . . . . . . . . . . . 1 . . 1 4 . Propulsion 29 | 2 . . 1 2 1 1 . . 2 . 6 2 . . 9 3 Treads 9 | 2 . . 1 . . 1 . . . . 3 . . . 2 . Leg 12 | . . . . 2 . . . . 2 . 1 . . . 4 3 Wheel 5 | . . . . . 1 . . . . . 2 2 . . . . Hover 3 | . . . . . . . . . . . . . . . 3 . Flight . | . . . . . . . . . . . . . . . . . Utility 54 | 1 2 . . 10 . 2 . . 3 1 11 3 5 3 12 1 Device 33 | . . . . 7 . 1 . . 3 1 8 2 . 1 10 . Storage 5 | 1 1 . . . . . . . . . 2 1 . . . . Processor 8 | . 1 . . 2 . 1 . . . . 1 . 2 1 . . Hackware 3 | . . . . . . . . . . . . . . 1 1 1 Protection 5 | . . . . 1 . . . . . . . . 3 . 1 . Artifact . | . . . . . . . . . . . . . . . . . Weapon 50 | 2 2 3 1 10 . 2 . . 1 . 9 2 4 1 12 1 Energy Gun 10 | . . 2 . 1 . . . . . . . 1 . . 6 . Energy Cannon 2 | . . . . 1 . . . . . . . . . . 1 . Ballistic Gun 21 | 2 2 . 1 3 . 2 . . . . 4 . 2 1 4 . Ballistic Cannon 8 | . . 1 . 2 . . . . . . 1 1 2 . 1 . Launcher 5 | . . . . 1 . . . . . . 4 . . . . . Special Weapon 2 | . . . . 1 . . . . . . . . . . . 1 Impact Weapon 2 | . . . . 1 . . . . 1 . . . . . . . Slashing Weapon . | . . . . . . . . . . . . . . . . . Piercing Weapon . | . . . . . . . . . . . . . . . . . Special Melee Weapon . | . . . . . . . . . . . . . . . . . Unidentified Prototypes 13 | . . . . 2 . . . . 1 1 7 . 1 1 . . Corrupted Parts 9 | . . . . . . . . . . . 3 . . . 3 3 System Corruption 60 | . . . . . . . . . . . 17 . . . 13 30 Parts Lost 61 | . . 2 . 5 2 1 . . . . 20 8 . . 19 4 Power 10 | . . 1 . 1 . . . . . . 4 1 . . 3 . Propulsion 11 | . . . . 1 . . . . . . 2 2 . . 5 1 Utility 23 | . . . . 2 2 . . . . . 8 4 . . 6 1 Weapon 17 | . . 1 . 1 . 1 . . . . 6 1 . . 5 2 Highest Loss Streak 8 | . . 2 . 2 2 1 . . . . 8 7 . . 7 3 To Critical Strikes 1 | . . . . . . . . . . . . . . . 1 . Average Backups 14 | 2 7 8 11 13 11 12 12 12 13 13 14 18 4 10 20 22 Power 1 | . 1 . . . . 1 1 1 . 1 . . . 1 2 2 Propulsion 1 | . 1 2 3 2 . . . . . . . 1 . 1 . 2 Utility 5 | . 2 3 4 3 4 4 5 5 6 7 7 8 . . 8 9 Weapon 5 | . 2 2 3 5 7 6 6 6 5 5 5 6 4 8 8 8 Tool/Special . | . . . . . . . . . . . . . . . . . Unused Backups 55 | . 1 . 4 9 . . . . 2 . 5 12 . . 8 14 Power 4 | . . . . . . . . . . . . 1 . . 2 1 Propulsion 4 | . . . 1 2 . . . . . . . . . . 1 . Utility 27 | . . . 2 2 . . . . . . 3 9 . . 3 8 Weapon 19 | . 1 . 1 5 . . . . 2 . 2 1 . . 2 5 Tool/Special 1 | . . . . . . . . . . . . 1 . . . . Average Slot Usage (%) 78 | . 98 99 91 67 63 70 63 77 79 85 75 54 53 85 81 87 Engine 4 | . 14 13 14 2 5 5 5 5 1 . 1 . 4 1 . . Core 3 | . . . . 2 . . . . 7 10 7 . 3 5 5 10 Reactor 1 | . . . . . . . . . . . . 4 . 3 3 . Treads 8 | . 28 28 28 3 . 3 5 5 5 5 3 3 . . . . Leg 3 | . . . . 6 5 5 5 5 10 15 3 . . . 5 20 Wheel 2 | . . . . . 5 5 5 5 5 5 5 5 5 5 2 . Hover 1 | . . . . . . . . . . . . . 3 5 3 . Device 11 | . . . . 13 14 14 16 16 15 20 19 15 . 4 20 23 Storage 7 | . 14 14 14 5 5 5 5 5 5 5 5 9 1 5 5 5 Processor 11 | . 12 14 14 13 11 14 16 16 14 10 10 5 11 15 8 5 Hackware 1 | . . . . . . . . . . . . . . . 3 7 Protection 2 | . . . . . . . . . . . . . 8 16 3 . Energy Gun 3 | . . 11 1 . . . . . 4 5 1 2 4 . 6 . Ballistic Gun 7 | . 28 8 8 8 11 10 2 11 6 5 7 . 3 13 6 . Ballistic Cannon 3 | . . 7 9 3 . . . . . . 2 4 4 6 2 4 Peak Build Rating 126 | 6 10 12 21 76 69 72 72 72 100 102 106 109 78 94 126 124 Average Rating 68 | 5 9 10 15 66 66 68 62 72 90 100 90 90 54 84 106 121 On Entrance 57 | . 6 10 12 21 66 60 72 72 72 100 101 72 19 78 94 117 Naked Turns . | . . . . . . . . . . . . . . . . . Heaviest Build 171 | 12 31 31 34 53 48 47 47 47 58 57 153 171 140 141 159 163 Greatest Support 90 | 40 40 40 43 70 50 50 50 50 90 90 90 70 16 16 80 90 Greatest Overweight (x) 44 | 1 . . . 1 . . . . 6 . 7 8 8 8 44 2 Average Overweight (x) 1 | . . . . . . . . . . . 2 6 1 7 5 1 Largest Inventory Capacity 25 | 8 15 15 15 15 15 15 15 15 15 15 25 25 25 25 25 25 Average Capacity 18 | 7 8 15 15 15 15 15 15 15 15 15 16 24 12 25 25 25 Most Carried 25 | 3 8 12 15 15 14 15 15 15 15 15 24 25 11 19 25 25 Average Carried 15 | 2 7 9 14 14 13 14 15 15 14 14 15 20 5 12 22 23 Final Capacity 25 | 8 15 15 15 15 15 15 15 15 15 15 25 5 25 25 25 25 Final Carried 25 | 3 8 12 15 14 14 15 15 15 14 15 21 5 11 19 25 23 Class Distribution -------------------- 41% | Mutant 18% | Scavenger-Gunner 8% | Scavenger-Mutant 7% | Derelict-Tank 6% | Scavenger-Skirmisher 5% | Scavenger-Scrapper 4% | Scavenger-Tank 3% | Tank Dominant Class ---------------- Mutant | -10/Materials Mutant | -10/Subcaves Mutant | -9/Scraptown Mutant | -6/Factory Scavenger-Gunner | -6/Lower Caves Scavenger-Skirmisher | -6/Lower Caves Mutant | -6/Data Miner Scavenger-Skirmisher | -5/Proximity Caves Scavenger-Mutant | -5/Factory Scavenger-Mutant | -5/Waste Scavenger-Scrapper | -5/Factory Mutant | -4/Factory Mutant | -4/Waste Derelict-Tank | -4/Factory Scavenger-Gunner | -4/Garrison Scavenger-Gunner | -4/Factory Resources | -11 -10 -10 -9 -6 -6 -6 -6 -5 -5 -5 -5 -4 -4 -4 -4 -4 ----------- Run | Yrd Mat Sub Scr Fac Low Low Dat Pro Fac Was Fac Fac Was Fac Gar Fac Matter Collected 5319 | 273 209 184 120 1032 145 97 . 103 149 . 1237 59 394 131 1070 116 Remotely . | . . . . . . . . . . . . . . . . . Salvage Created 8512 | 85 294 112 . 1256 168 27 . 76 160 . 2542 232 . . 2784 776 Parts 337 | 11 20 5 . 42 5 6 . 6 8 . 97 15 . . 98 24 Haulers Intercepted 8 | . 1 . . 4 . . . . . . 3 . . . . . Recyclers Shooed 9 | . . . . . . . . . . . 9 . . . . . Parts Field Recycled 7 | . . . . . . . . . . . . 7 . . . . Retrieved Matter 117 | . . . . . . . . . . . . 117 . . . . Parts Self-Destructed 24 | . . 14 . . 3 2 . 5 . . . . . . . . Prevented . | . . . . . . . . . . . . . . . . . Kills | -11 -10 -10 -9 -6 -6 -6 -6 -5 -5 -5 -5 -4 -4 -4 -4 -4 ------- Run | Yrd Mat Sub Scr Fac Low Low Dat Pro Fac Was Fac Fac Was Fac Gar Fac Combat Hostiles Destroyed 126 | . 3 3 . 15 6 3 . 5 3 . 28 7 . . 38 15 Melee 1 | . . . . . . . . . 1 . . . . . . . Guns 47 | . 3 . . 8 . . . . 2 . 13 3 . . 18 . Cannons 18 | . . 3 . 5 . . . . . . 5 . . . 4 1 AOE 45 | . . . . . 6 3 . 5 . . 9 4 . . 8 10 Classes Destroyed 23 | 1 5 3 . 6 . . . . . . 4 . . . 2 2 Worker 7 | . 1 . . 1 . . . . . . 2 1 . . . 2 Builder 8 | . 2 . . 1 . . . . . . 5 . . . . . Tunneler 6 | 4 1 . . . . . . . . . 1 . . . . . Hauler 8 | . 1 . . 4 . . . . . . 3 . . . . . Recycler 6 | . . . . 2 . . . . . . 4 . . . . . Mechanic 1 | . . . . . . . . . . . 1 . . . . . Turret 1 | . . 1 . . . . . . . . . . . . . . Watcher 2 | . 1 . . . . . . . . . 1 . . . . . Swarmer 18 | . . . . 2 . 3 . 5 . . . 4 . . 4 . Cutter 1 | . . . . . . . . . . . . . . . 1 . Grunt 43 | . 3 . . 3 4 . . . . . 13 . . . 16 4 Brawler 6 | . . . . . . . . . . . 1 . . . 4 1 Duelist 3 | . . . . 2 . . . . . . 1 . . . . . Sentry 8 | . . . . 2 . . . . . . . 1 . . 4 1 Demolisher 2 | . . . . . . . . . . . . . . . . 2 Specialist 5 | . . . . . . . . . . . 4 . . . 1 . Hunter 15 | . . . . 3 2 . . . 1 . 5 . . . 4 . Programmer 16 | . . . . 3 . . . . 2 . 4 2 . . 3 2 Behemoth 1 | . . . . . . . . . . . . . . . 1 . Artisan 2 | . . 2 . . . . . . . . . . . . . . Subdweller 3 | . . 3 . . . . . . . . . . . . . . Scrapoid 3 | . . . . . . . . . . . 3 . . . . . Assembled 5 | . . . . . . . . . . . . . . . . 5 Surgeon 1 | . . . . . . . . . . . . . . . 1 . Thug 2 | . . . . . . . . . . . . . . . 2 . Best Kill Streak 10 | 2 2 1 . 3 4 3 . 5 2 . 10 6 . . 6 7 Combat Bots Only 7 | . 1 1 . 3 4 3 . 5 2 . 7 6 . . 6 6 Max Kills in Single Turn 5 | 1 1 1 . 1 3 1 . 5 1 . 4 3 . . 3 5 Gunslinging . | . . . . . . . . . . . . . . . . . Exploded 5 | . . . . . 3 1 . 5 . . 4 3 . . 3 5 Melee 1 | . . . . . . . . . 1 . . . . . . . Uniques/NPCs Destroyed . | . . . . . . . . . . . . . . . . . Combat | -11 -10 -10 -9 -6 -6 -6 -6 -5 -5 -5 -5 -4 -4 -4 -4 -4 -------- Run | Yrd Mat Sub Scr Fac Low Low Dat Pro Fac Was Fac Fac Was Fac Gar Fac Hostile Shots Fired 1126 | . 16 50 . 225 31 8 . . 17 1 282 168 . 1 271 56 Missed 361 | . 4 20 . 75 12 2 . . 7 1 84 52 . 1 84 19 Hits 765 | . 12 30 . 150 19 6 . . 10 . 198 116 . . 187 37 Melee 29 | . . . . 8 . . . . . . 4 . . . 15 2 Projectile 736 | . 12 30 . 142 19 6 . . 10 . 194 116 . . 172 35 Critical Strikes 41 | . . 1 . 3 1 . . . 2 . 11 5 . . 17 1 Part Disruptions 5 | . . . . . . . . . . . . 1 . . 1 3 Damage Taken 15141 | . 143 451 . 2107 388 124 . 40 195 . 4418 2113 . 78 4064 1020 Core 2511 | . 36 93 . 252 74 11 . . 43 . 849 490 . . 478 185 Absorbed by Shields 63 | . . . . . . 49 . 14 . . . . . . . . Ignored by Resistances 167 | . . . . 167 . . . . . . . . . . . . Regen/Repaired (Parts) 500 | . . . . 16 . . . . . . 51 . . . 433 . Core Remaining (%) 54 | 100 . . 48 . . . . 60 . . 10 . . . . . Volleys Fired 545 | 28 21 49 . 71 12 3 . 1 6 . 136 19 7 5 155 32 Largest 4 | 2 2 2 . 3 3 1 . 1 3 . 3 2 1 4 4 1 Hottest 326 | 40 46 63 . 140 93 36 . 36 136 . 140 160 40 115 326 94 Shots Fired 1001 | 56 42 84 . 164 18 3 . 1 16 . 241 24 7 20 295 30 Gun 736 | 56 42 49 . 81 8 . . . 16 . 197 21 7 15 244 . Cannon 218 | . . 35 . 81 2 . . . . . 36 . . 5 45 14 Launcher 40 | . . . . . 8 3 . 1 . . 8 3 . . 6 11 Special 7 | . . . . 2 . . . . . . . . . . . 5 Kinetic 648 | 56 42 53 . 139 10 . . . 11 . 206 . . 20 108 3 Thermal 250 | . . 31 . 23 . . . . 5 . 27 15 7 . 142 . Explosive 20 | . . . . . 8 3 . 1 . . 5 1 . . . 2 Electromagnetic 76 | . . . . . . . . . . . 3 8 . . 45 20 Robot Hit Streak 20 | 5 15 9 . 20 10 6 . 2 8 . 9 3 4 2 15 6 Robot Miss Streak 7 | 3 3 3 . 4 1 1 . . 2 . 4 4 1 7 6 4 Penetration Max 1 | . . . . 1 . . . . . . 1 . . . . . Secondary Targets 10 | . . . . . . . . . 1 . 5 . . . 4 . Max Gunslinging Chain 1 | . . . . . . . . . 1 . 1 . . . 1 . Capacitor 102 | . . . . . . . . . . . . . . . 91 11 Shots Hit Robots 592 | 30 28 37 . 116 15 2 . 1 13 . 139 13 6 5 168 19 Core Hits 378 | 9 12 10 . 34 15 4 . 6 8 . 104 18 2 2 116 38 Critical Kills 13 | . . . . 4 . . . . 1 . 4 . . . 4 . Critical Parts Destroyed 18 | . 1 . . 10 . . . . . . 2 . . . 5 . Critical Strikes 47 | . 1 . . 16 . . . . 2 . 10 2 . . 14 2 Burn 13 | . . . . 1 . . . . 1 . 4 2 . . 5 . Destroy 26 | . 1 . . 10 . . . . . . 6 . . . 9 . Blast 1 | . . . . 1 . . . . . . . . . . . . Corrupt 2 | . . . . . . . . . . . . . . . . 2 Smash 5 | . . . . 4 . . . . 1 . . . . . . . Melee Attacks 40 | . . . . 33 . . . . 7 . . . . . . . Impact 40 | . . . . 33 . . . . 7 . . . . . . . Slashing . | . . . . . . . . . . . . . . . . . Piercing . | . . . . . . . . . . . . . . . . . Sneak Attacks 6 | . . . . 6 . . . . . . . . . . . . Combat Hostiles 1 | . . . . 1 . . . . . . . . . . . . Follow-up Attacks . | . . . . . . . . . . . . . . . . . Damage Inflicted 23027 | 246 415 595 . 2733 864 248 . 253 359 . 7890 1492 88 134 5494 2216 Guns 9765 | 246 415 245 . 755 98 . . . 333 . 3604 318 88 65 3598 . Cannons 3954 | . . 350 . 1173 53 . . . . . 1242 . . 69 652 415 Explosions 8331 | . . . . . 713 248 . 253 . . 3044 1028 . . 1244 1801 Melee 831 | . . . . 805 . . . . 26 . . . . . . . Ramming 146 | . . . . . . . . . . . . 146 . . . . Kinetic 9057 | 246 415 507 . 1609 151 . . . 192 . 4499 . . 134 1198 106 Thermal 4465 | . . 88 . 319 . . . . 141 . 982 549 88 . 2186 112 Explosive 4093 | . . . . . 713 248 . 253 . . 1770 437 . . . 672 Electromagnetic 4435 | . . . . . . . . . . . 639 360 . . 2110 1326 Impact 831 | . . . . 805 . . . . 26 . . . . . . . Slashing . | . . . . . . . . . . . . . . . . . Piercing . | . . . . . . . . . . . . . . . . . Highest Corruption 51 | . . . . 1 1 1 1 1 . 19 48 13 13 . 17 51 Average Corruption 13 | . . . . 1 1 1 1 1 . 13 31 9 13 . 11 26 Corruption Purged . | . . . . . . . . . . . . . . . . . Corruption Blocked . | . . . . . . . . . . . . . . . . . Effects 235 | . . . . 5 2 2 1 2 . 11 81 10 12 . 88 21 Message Errors 51 | . . . . . . 1 . . . 1 14 2 6 . 21 6 Matter Fused 43 | . . . . 2 . 1 . 1 . . 14 1 1 . 18 5 Heat Flow Errors 25 | . . . . . . . . 1 . 1 8 2 2 . 9 2 Energy Discharges 23 | . . . . 2 . . . . . 1 6 1 1 . 9 3 Parts Rejected 4 | . . . . . 1 . . . . . . . . . 3 . Parts Fused 5 | . . . . . . . . . . . 1 . . . 4 . Data Loss (minor) 25 | . . . . . 1 . . . . 2 10 1 1 . 9 1 Data Loss (major) 10 | . . . . 1 . . 1 . . 1 3 1 . . 3 . Misfires 13 | . . . . . . . . . . . 5 . . . 8 . Alerts 1 | . . . . . . . . . . . 1 . . . . . Misdirections 13 | . . . . . . . . . . 5 3 2 1 . . 2 Weapon Failures 22 | . . . . . . . . . . . 16 . . . 4 2 Overload Shots . | . . . . . . . . . . . . . . . . . Overflow Damage 910 | . . 13 . 482 28 9 . . . . 214 82 . . 6 76 Projectiles 106 | . . 13 . 12 . . . . . . 75 . . . 6 . Explosions 334 | . . . . . 28 9 . . . . 139 82 . . . 76 Melee 470 | . . . . 470 . . . . . . . . . . . . Knockbacks 18 | . . 1 . 6 1 . . . . . 4 2 . . 2 2 Impact 6 | . . . . 4 . . . . . . . 2 . . . . Kinetic 11 | . . 1 . 2 1 . . . . . 4 . . . 1 2 Secondary 1 | . . . . . . . . . . . . . . . 1 . Self-Inflicted Damage 739 | . . . . . 56 82 . 54 . . 24 65 . . 140 318 Shots 35 | . . . . . 1 2 . 1 . . 2 . . . 10 19 Rammed 10 | . . . . . . . . . . . . 10 . . . . Targets Rammed 10 | . . . . . . . . . . . . 10 . . . . Kicked . | . . . . . . . . . . . . . . . . . Crushed . | . . . . . . . . . . . . . . . . . Highest Temperature 492 | . 4 . . 244 10 . . 119 121 256 492 330 223 162 282 82 Average Temperature 93 | . 1 . . 61 4 . . 62 74 126 128 132 102 65 82 23 Received Heat Transfer 1727 | . 81 126 . 297 54 . . . . . 654 . . . 365 150 Effects 5 | . . . . . . . . . . . 3 2 . . . . Shutdowns 2 | . . . . . . . . . . . 2 . . . . . Energy Bleed 2 | . . . . . . . . . . . 1 1 . . . . Matter Decay 1 | . . . . . . . . . . . . 1 . . . . Siege Activations . | . . . . . . . . . . . . . . . . . Martial Activations . | . . . . . . . . . . . . . . . . . Shielding Activations . | . . . . . . . . . . . . . . . . . Robots Disrupted 2 | . . . . . . . . . . . 1 . . . . 1 Combat Hostiles 2 | . . . . . . . . . . . 1 . . . . 1 Robots Corrupted 17 | . . . . 6 . . . . . . 1 . . . 6 4 Combat Hostiles 13 | . . . . 2 . . . . . . 1 . . . 6 4 Parts Fried 36 | . . . . 15 . . . . . . 1 . . . 13 7 Impact Corruptions 16 | . . . . 16 . . . . . . . . . . . . Robots Melted 2 | . . . . . . . . . . . . . . . 2 . Combat Hostiles 2 | . . . . . . . . . . . . . . . 2 . Parts Melted 19 | . . . . 1 . . . . 1 . . . . . 17 . Heat Transferred 7737 | . . 250 . 520 . . . . 350 . 1700 850 259 . 3758 50 Parts Sabotaged 2 | . . . . . . . . . . . 2 . . . . . Parts Stolen . | . . . . . . . . . . . . . . . . . Parts Stripped . | . . . . . . . . . . . . . . . . . Power Chain Reactions 2 | . . . . . . . . . . . . . . . 2 . Alert | -11 -10 -10 -9 -6 -6 -6 -6 -5 -5 -5 -5 -4 -4 -4 -4 -4 ------- Run | Yrd Mat Sub Scr Fac Low Low Dat Pro Fac Was Fac Fac Was Fac Gar Fac Maximum Alert Level 5 | . . . . 1 . . . . . . 4 2 . 1 5 4 Low Security (%) 46 | 100 100 . . 98 . . . . 100 100 42 . 100 73 . . Level 1 5 | . . . . 1 . . . . . . 6 2 . 26 9 . Level 2 12 | . . . . . . . . . . . 7 97 . . 9 . Level 3 6 | . . . . . . . . . . . 22 . . . 10 . Level 4 18 | . . . . . . . . . . . 20 . . . 39 100 Level 5 10 | . . . . . . . . . . . . . . . 31 . High Security . | . . . . . . . . . . . . . . . . . Max Security . | . . . . . . . . . . . . . . . . . Peak Influence 2655 | 5 52 . . 230 . . . . 50 . 1466 680 187 393 2655 1551 Initial 1393 | . . . . . . . . . 12 . . 680 187 . 269 1393 Average 633 | 1 13 . . 32 . . . . 7 . 583 511 63 94 1394 1386 Influence Increases 7306 | 20 149 65 . 610 140 70 . 110 90 . 2127 297 54 480 2726 368 Destroy 0b10 Robot/C 3060 | . 60 20 . 320 120 60 . 100 60 . 820 140 . 160 1000 200 Destroy 0b10 Robot/NC 230 | 20 30 . . 40 . . . . . . 115 5 . 5 5 10 Destroy Leader 466 | . 14 . . 98 20 10 . 10 20 . 152 30 . 32 40 40 Allied During Kill 672 | . . . . 5 . . . . . . 194 . . 186 287 . Successful Hack 44 | . . . . . . . . . . . . . . . 44 . Disable Machine 450 | . 15 . . 45 . . . . . . 285 60 . 15 . 30 Anti-Garrison Action 1150 | . . . . . . . . . . . . . . . 1150 . Destroy Structure 964 | . . . . 27 . . . . 10 . 546 62 54 82 125 58 Lose Combat Pursuer 270 | . 30 45 . 75 . . . . . . 15 . . . 75 30 Influence Decreases 5755 | 20 144 70 . 393 182 184 61 90 108 2 738 1151 589 95 456 1472 Entered New Map 2625 | . . 3 . . 82 34 61 . 8 2 . 709 348 . 116 1262 Time Decay 2198 | 20 144 67 . 311 80 140 . 90 100 . 398 362 221 95 . 170 Lost Part 570 | . . . . 30 20 10 . . . . 200 80 . . 190 40 Lost Ally 362 | . . . . 52 . . . . . . 140 . 20 . 150 . Squads Dispatched 29 | . 1 . . 7 . . . . 1 . 14 2 . 3 . 1 Investigation 8 | . . . . 4 . . . . . . 3 . . 1 . . Extermination 9 | . . . . 3 . . . . 1 . 3 1 . . . 1 Reinforcement 7 | . 1 . . . . . . . . . 5 1 . . . . Assault 3 | . . . . . . . . . . . 3 . . . . . Garrison 2 | . . . . . . . . . . . . . . 2 . . Intercept . | . . . . . . . . . . . . . . . . . Searches Triggered . | . . . . . . . . . . . . . . . . . Data Miner Redirects 2 | . . . . . . . . . . . 2 . . . . . Construction Impeded 2 | . . . . . . . . . . . 1 1 . . . . Haulers Reinforced 2 | . . . . . . . . . . . 2 . . . . . Active Scanning Responses . | . . . . . . . . . . . . . . . . . Cargo Convoy Interrupts 1 | . . . . . . . . . . . 1 . . . . . Stealth | -11 -10 -10 -9 -6 -6 -6 -6 -5 -5 -5 -5 -4 -4 -4 -4 -4 --------- Run | Yrd Mat Sub Scr Fac Low Low Dat Pro Fac Was Fac Fac Was Fac Gar Fac Distress Signals 6 | . . . . 1 . . . . . . 3 . . . . 2 Communications Jammed 4 | . . . . . . . . . . . 4 . . . . . Distress Signals 2 | . . . . . . . . . . . 2 . . . . . Times Spotted 224 | . 8 8 . 27 6 3 . . 4 6 60 14 6 4 52 26 Peak Tracking Total 11 | . 2 6 . 6 4 3 . . 3 6 11 9 6 1 9 11 Tactical Retreats 11 | . 2 2 . 2 . . . . . 1 1 . . . 2 1 Traps | -11 -10 -10 -9 -6 -6 -6 -6 -5 -5 -5 -5 -4 -4 -4 -4 -4 ------- Run | Yrd Mat Sub Scr Fac Low Low Dat Pro Fac Was Fac Fac Was Fac Gar Fac Traps Triggered 14 | . . . . 1 . . . . 2 . 2 1 . . 8 . Indirectly 4 | . . . . . . . . . . . 1 . . . 3 . Trap Hack Attempts . | . . . . . . . . . . . . . . . . . Triggered . | . . . . . . . . . . . . . . . . . Disarmed . | . . . . . . . . . . . . . . . . . Reprogrammed . | . . . . . . . . . . . . . . . . . Reused . | . . . . . . . . . . . . . . . . . Traps Extracted . | . . . . . . . . . . . . . . . . . Installed . | . . . . . . . . . . . . . . . . . Triggered . | . . . . . . . . . . . . . . . . . Machines | -11 -10 -10 -9 -6 -6 -6 -6 -5 -5 -5 -5 -4 -4 -4 -4 -4 ---------- Run | Yrd Mat Sub Scr Fac Low Low Dat Pro Fac Was Fac Fac Was Fac Gar Fac Machines Disabled 36 | . 1 2 . 3 . . . . . . 19 4 . 1 4 2 Max in Single Turn 2 | . 1 1 . 1 . . . . . . 2 2 . 1 1 1 Garrison Access 1 | . . . . 1 . . . . . . . . . . . . Garrison Relay 4 | . . . . . . . . . . . . . . . 4 . Machines Repaired . | . . . . . . . . . . . . . . . . . Machines Dismantled . | . . . . . . . . . . . . . . . . . Machines Sabotaged . | . . . . . . . . . . . . . . . . . Overloaded Fab Kills . | . . . . . . . . . . . . . . . . . Hacking | -11 -10 -10 -9 -6 -6 -6 -6 -5 -5 -5 -5 -4 -4 -4 -4 -4 --------- Run | Yrd Mat Sub Scr Fac Low Low Dat Pro Fac Was Fac Fac Was Fac Gar Fac Machines Accessed 26 | . . 1 2 8 . . 4 . 2 . 3 . . 2 4 . Terminals 8 | . . . . 2 . . . . 1 . . . . 1 4 . Fabricators 1 | . . . . 1 . . . . . . . . . . . . Repair Stations . | . . . . . . . . . . . . . . . . . Recycling Units 7 | . . . . 4 . . . . . . 3 . . . . . Scanalyzers . | . . . . . . . . . . . . . . . . . Garrison Access 3 | . . . . 1 . . . . 1 . . . . 1 . . Total Hacks 66 | . . 1 10 9 . . 27 . 4 . 3 . . 4 8 . Successful 52 | . . 1 10 5 . . 27 . . . 3 . . 2 4 . Failed 14 | . . . . 4 . . . . 4 . . . . 2 4 . Catastrophic 2 | . . . . 1 . . . . . . . . . . 1 . Database Lockouts . | . . . . . . . . . . . . . . . . . Manual 9 | . . . . 6 . . . . . . 3 . . . . . Terminals 15 | . . . . 2 . . . . 2 . . . . 3 8 . Fabricators 1 | . . . . 1 . . . . . . . . . . . . Repair Stations . | . . . . . . . . . . . . . . . . . Recycling Units 8 | . . . . 5 . . . . . . 3 . . . . . Scanalyzers . | . . . . . . . . . . . . . . . . . Garrison Access 4 | . . . . 1 . . . . 2 . . . . 1 . . Terminal Hacks 43 | . . 1 10 . . . 27 . . . . . . 1 4 . Record 15 | . . . 4 . . . 11 . . . . . . . . . Part Schematic 8 | . . . . . . . 8 . . . . . . . . . Robot Schematic 5 | . . . . . . . 5 . . . . . . . . . Robot Analysis 6 | . . . 6 . . . . . . . . . . . . . Prototype ID Bank 3 | . . . . . . . 3 . . . . . . . . . Open DSF 1 | . . . . . . . . . . . . . . 1 . . Emergency Access Points 1 | . . . . . . . . . . . . . . . 1 . Garrison Registry 1 | . . . . . . . . . . . . . . . 1 . Patrol Navigation 1 | . . . . . . . . . . . . . . . 1 . Security Stations 1 | . . . . . . . . . . . . . . . 1 . Proto ID Catalog 1 | . . 1 . . . . . . . . . . . . . . Fabricator Hacks 1 | . . . . 1 . . . . . . . . . . . . Network Status 1 | . . . . 1 . . . . . . . . . . . . Repair Station Hacks . | . . . . . . . . . . . . . . . . . Recycling Unit Hacks . | . . . . . . . . . . . . . . . . . Scanalyzer . | . . . . . . . . . . . . . . . . . Garrison Access Hacks 2 | . . . . 1 . . . . . . . . . 1 . . Unlock Access 1 | . . . . . . . . . . . . . . 1 . . Seal Access 1 | . . . . 1 . . . . . . . . . . . . Unauthorized Hacks 6 | . . . . 3 . . . . . . 3 . . . . . Terminals . | . . . . . . . . . . . . . . . . . Fabricators . | . . . . . . . . . . . . . . . . . Repair Stations . | . . . . . . . . . . . . . . . . . Recycling Units 6 | . . . . 3 . . . . . . 3 . . . . . Fedlink 3 | . . . . 2 . . . . . . 1 . . . . . Scrapoids 3 | . . . . 1 . . . . . . 2 . . . . . Scanalyzers . | . . . . . . . . . . . . . . . . . Garrison Access . | . . . . . . . . . . . . . . . . . Data Cores Recovered . | . . . . . . . . . . . . . . . . . Used . | . . . . . . . . . . . . . . . . . Hacking Detections 11 | . . . . 3 . . . . 2 . . . . 2 4 . Full Trace Events 4 | . . . . 1 . . . . . . . . . 1 2 . Feedback Events . | . . . . . . . . . . . . . . . . . Feedback Blocked . | . . . . . . . . . . . . . . . . . Robot Schematics Acquired 5 | . . . . . . . 5 . . . . . . . . . Robots Built . | . . . . . . . . . . . . . . . . . Authchips . | . . . . . . . . . . . . . . . . . Time . | . . . . . . . . . . . . . . . . . Total Robot Build Rating . | . . . . . . . . . . . . . . . . . Part Schematics Acquired 8 | . . . . . . . 8 . . . . . . . . . Parts Built . | . . . . . . . . . . . . . . . . . Authchips . | . . . . . . . . . . . . . . . . . Time . | . . . . . . . . . . . . . . . . . Total Part Build Rating . | . . . . . . . . . . . . . . . . . Parts Repaired . | . . . . . . . . . . . . . . . . . Time . | . . . . . . . . . . . . . . . . . Parts Recycled . | . . . . . . . . . . . . . . . . . Recycled Matter . | . . . . . . . . . . . . . . . . . Retrieved Matter . | . . . . . . . . . . . . . . . . . Retrieved Components . | . . . . . . . . . . . . . . . . . Parts Scanalyzed . | . . . . . . . . . . . . . . . . . Part Schematics Acquired . | . . . . . . . . . . . . . . . . . Parts Damaged . | . . . . . . . . . . . . . . . . . Bothacking | -11 -10 -10 -9 -6 -6 -6 -6 -5 -5 -5 -5 -4 -4 -4 -4 -4 ------------ Run | Yrd Mat Sub Scr Fac Low Low Dat Pro Fac Was Fac Fac Was Fac Gar Fac Used RIF Installer 2 | . . . . . . . . . . . . . . . 2 . Patrol Navigation 1 | . . . . . . . . . . . . . . . 1 . Robots Hacked 2 | . . . . . . . . . . . . . . . . 2 Non-combat 2 | . . . . . . . . . . . . . . . . 2 Combat . | . . . . . . . . . . . . . . . . . Robot Hacks Applied 2 | . . . . . . . . . . . . . . . . 2 map_walls 1 | . . . . . . . . . . . . . . . . 1 map_route 1 | . . . . . . . . . . . . . . . . 1 Relay Couplers Released 19 | . . . . . . . . . . . 4 . . . 15 . Machine Destruction 15 | . . . . . . . . . . . . . . . 15 . Programmers 4 | . . . . . . . . . . . 4 . . . . . Attached 2 | . . . . . . . . . . . . . . . 1 1 Fabnet Peak Effective % . | . . . . . . . . . . . . . . . . . Robots Rewired . | . . . . . . . . . . . . . . . . . Allies Hacked . | . . . . . . . . . . . . . . . . . Hacks Repelled . | . . . . . . . . . . . . . . . . . Allies | -11 -10 -10 -9 -6 -6 -6 -6 -5 -5 -5 -5 -4 -4 -4 -4 -4 -------- Run | Yrd Mat Sub Scr Fac Low Low Dat Pro Fac Was Fac Fac Was Fac Gar Fac Total Allies 37 | . . . . 5 . . . . . . 10 . 20 . 2 . Largest Group 19 | . . . . 5 . . . . . . 5 . 19 13 9 . Highest-Rated Group 684 | . . . . 143 . . . . . . 244 . 684 503 376 . Highest-Rated Ally 50 | . . . . 31 . . . . . . 50 . 50 50 50 . Total Orders . | . . . . . . . . . . . . . . . . . Ally Attacks 371 | . . . . 14 . . . . . . 145 . 110 56 46 . Total Damage 12359 | . . . . 228 . . . . . . 3471 . 5044 1609 2007 . Kills 52 | . . . . 1 . . . . . . 19 . 10 10 12 . Allies Corrupted 3 | . . . . . . . . . . . 1 . . . 2 . Allies Melted . | . . . . . . . . . . . . . . . . . Intel | -11 -10 -10 -9 -6 -6 -6 -6 -5 -5 -5 -5 -4 -4 -4 -4 -4 ------- Run | Yrd Mat Sub Scr Fac Low Low Dat Pro Fac Was Fac Fac Was Fac Gar Fac Active Infowar (turns) 6900 | . . . . 1366 160 289 90 183 548 186 1237 796 230 419 1396 . Optics 6894 | . . . . 1366 160 289 90 183 548 186 1237 796 230 419 1390 . Sensors 2349 | . . . . 6 . 289 90 183 548 186 1047 . . . . . Structural 1492 | . . . . 1365 127 . . . . . . . . . . . Machine Analysis 656 | . . . . . . . . . . . 656 . . . . . Jamming 2397 | . . . . . . . . . 53 183 361 . . 404 1396 . Robot Analysis Total 6 | . . . 6 . . . . . . . . . . . . . Derelict Logs Recovered 1 | . . . . . . . . 1 . . . . . . . . Drone Launches . | . . . . . . . . . . . . . . . . . Drone Recoveries . | . . . . . . . . . . . . . . . . . Exploration | -11 -10 -10 -9 -6 -6 -6 -6 -5 -5 -5 -5 -4 -4 -4 -4 -4 ------------- Run | Yrd Mat Sub Scr Fac Low Low Dat Pro Fac Was Fac Fac Was Fac Gar Fac Turns Passed 12787 | 237 512 1032 1525 1396 160 289 90 183 548 186 1237 825 748 419 3055 345 Spaces Moved 7234 | 100 273 564 943 1042 145 300 94 202 406 152 709 377 624 156 1036 111 Core 241 | 7 . . . . . . . . . . . 17 213 . 4 . Treads 1918 | 93 273 564 943 17 . . . . . . . 28 . . . . Legs 3059 | . . . . 1025 145 300 94 202 366 152 279 . . . 385 111 Wheels 1922 | . . . . . . . . . 40 . 430 332 404 156 560 . Hover 94 | . . . . . . . . . . . . . 7 . 87 . Flight . | . . . . . . . . . . . . . . . . . Fastest Speed 50 | 50 160 160 160 90 90 90 90 90 90 110 80 50 50 230 190 190 Average Speed 146 | 153 160 160 160 95 90 90 90 90 106 110 111 151 114 248 252 256 Slowest Speed 2250 | 160 160 160 160 180 90 90 90 90 180 110 155 320 250 250 2250 260 Overloaded Moves . | . . . . . . . . . . . . . . . . . Propulsion Burnouts . | . . . . . . . . . . . . . . . . . Robots Hopped . | . . . . . . . . . . . . . . . . . Potential Cave-ins . | . . . . . . . . . . . . . . . . . Cave-ins Triggered . | . . . . . . . . . . . . . . . . . Exploration Rate (%) 39 | 8 49 28 48 22 40 46 75 48 13 83 21 4 96 6 84 6 Regions Visited 16 Branch Regions 6 Pre-discovered Areas 3 | . . 1 . 1 . . 1 . . . . . . . . . Known Exits Taken 3 | . . . . 1 . . . 1 . . . . . 1 . . Unknown Exits Taken 8 | 1 1 1 1 . 1 1 1 . . . 1 . . . . . Scrap Searched 11 | . . . 5 . . 4 . 2 . . . . . . . . Spaces Dug 36 | . . 3 . 20 . . . . 5 . 7 . . . . 1 Terrain Destroyed 408 | . . 3 . 25 43 10 . 8 5 . 212 45 . 1 13 43 Melee 18 | . . . . 13 . . . . 5 . . . . . . . Projectile 166 | . . 3 . 12 . . . . . . 133 4 . 1 12 1 AOE 224 | . . . . . 43 10 . 8 . . 79 41 . . 1 42 Terrain Rammed . | . . . . . . . . . . . . . . . . . Walls Destroyed . | . . . . . . . . . . . . . . . . . Machines Disabled . | . . . . . . . . . . . . . . . . . Actions | -11 -10 -10 -9 -6 -6 -6 -6 -5 -5 -5 -5 -4 -4 -4 -4 -4 --------- Run | Yrd Mat Sub Scr Fac Low Low Dat Pro Fac Was Fac Fac Was Fac Gar Fac Total 8652 | 136 307 622 964 1278 161 313 99 202 503 169 981 600 652 176 1336 153 Wait 331 | . . . . 52 . . . . 55 13 56 154 . . 1 . Move 7220 | 99 272 563 942 1041 144 299 93 201 406 151 708 377 623 156 1034 111 Hop . | . . . . . . . . . . . . . . . . . Pick Up 136 | 3 6 4 8 21 2 3 . . 6 1 20 14 6 7 35 . Fast Attach 90 | 6 1 2 . 12 . 4 3 . 4 2 19 2 9 3 22 1 Attach 63 | . . 2 2 13 2 1 . . 3 . 10 7 1 1 19 2 Detach 16 | . . . 2 5 . . . . 1 . 3 1 . . 3 1 Swap 46 | . 3 . 2 6 1 2 . . 6 . 9 2 1 1 8 5 Drop 121 | . 4 2 7 24 . 1 3 . 9 2 20 14 5 3 26 1 Fire 545 | 28 21 49 . 71 12 3 . 1 6 . 136 19 7 5 155 32 Melee 40 | . . . . 33 . . . . 7 . . . . . . . Ram 9 | . . . . . . . . . . . . 9 . . . . Kick . | . . . . . . . . . . . . . . . . . Crush 1 | . . . . . . . . . . . . 1 . . . . Escape Stasis 33 | . . . . . . . . . . . . . . . 33 . Rewire 1 | . . . 1 . . . . . . . . . . . . . Trap . | . . . . . . . . . . . . . . . . . Miscellaneous . | . . . . . . . . . . . . . . . . . Route ------- -11/Scrapyard -10/Materials (discovered 3 exits: [*Mat] / [*Min] / *Sub) -10/Subcaves -9/Scraptown -6/Factory (discovered 2 exits: *Fac / *Low) -6/Lower Caves -6/Lower Caves -6/Data Miner -5/Proximity Caves -5/Factory -5/Waste -5/Factory -4/Factory -4/Waste -4/Factory -4/Garrison (discovered 3 exits: [*Fac x3]) -4/Factory History --------- Turn | Location | Event 11 | -11/Scrapyard | Discovered new exit (range 14) 238 | -11/Scrapyard | Entered Materials 239 | -10/Materials | Met a group of wandering Federalists 317 | -10/Materials | Build established: Mutant 460 | -10/Materials | Discovered new exit (range 16) 498 | -10/Materials | Discovered new exit (range 3) 745 | -10/Materials | Discovered new exit (range 5) 750 | -10/Materials | Entered Subcaves 751 | -10/Subcaves | Continued accompanying wandering Federalists (4) 751 | -10/Subcaves | Approached by a straggling Scientist 839 | -10/Subcaves | Shifting Twisted Machinery released Battle Cannon 847 | -10/Subcaves | Shifting Twisted Machinery released Sub. Power Source 850 | -10/Subcaves | Shifting Twisted Machinery released Sub. Monowheel 980 | -10/Subcaves | Wandering Federalist uncovered a shortcut to Scraptown 1133 | -10/Subcaves | Learned location of Zion (-7) 1133 | -10/Subcaves | Met a Zionite searching for "candidates" 1219 | -10/Subcaves | Ambushed by angry Subdweller bent on revenge 1403 | -10/Subcaves | Visited 4L-MR0's lab 1425 | -10/Subcaves | Found Arachnoskeleton 1486 | -10/Subcaves | Core integrity fell below 50% 1782 | -10/Subcaves | Entered Scraptown 1952 | -9/Scraptown | Visited UFD Registry 1952 | -9/Scraptown | Registered with UFD as "Armorbucket" 1988 | -9/Scraptown | Visited Botcube Research 2015 | -9/Scraptown | Visited Chapter 10 2057 | -9/Scraptown | Visited Scrapoid Research Area 2086 | -9/Scraptown | Visited Analyses Database 2115 | -9/Scraptown | Visited Abandonware Association 2142 | -9/Scraptown | Visited DA-N13 Charitable Foundation 2172 | -9/Scraptown | Visited Infowarlord's Domain 2201 | -9/Scraptown | Visited Research Penetration Think Tank 2267 | -9/Scraptown | Found DCF Scrap (26 items) 2331 | -9/Scraptown | Found Spectral Analyzer 2400 | -9/Scraptown | Visited Supply Room 2464 | -9/Scraptown | Learned abandonware demo "TRNCOAT.EXE" 2464 | -9/Scraptown | Learned abandonware demo "MELTYB.EXE" 2761 | -9/Scraptown | Found Botcube 3051 | -9/Scraptown | Visited CPS Storage 3214 | -9/Scraptown | Met Optimus 3214 | -9/Scraptown | Accepted into 0bPrime 3296 | -9/Scraptown | Discovered new exit (range 5) 3307 | -9/Scraptown | Entered Factory 3307 | -6/Factory | Evolved 8 slots: Propulsion x2, Utility x5, Weapon x1 3336 | -6/Factory | Attached Arachnoskeleton, gained temporary slots: Propulsion x3 3758 | -6/Factory | Discovered new exit (range 6) 3766 | -6/Factory | Identified exit to Factory 3857 | -6/Factory | Discovered new exit (range 8) 3862 | -6/Factory | Identified exit to Lower Caves 3978 | -6/Factory | Spotted B-75 Beast 4071 | -6/Factory | Loaded intel: 8 recycling unit locations 4270 | -6/Factory | Learned location of Protoforge (-2) 4483 | -6/Factory | Scrapoid reinforcements arrived 4501 | -6/Factory | Found Scrap Suit 4535 | -6/Factory | Lost 5 allies 4540 | -6/Factory | Found Scrap Suit 4703 | -6/Factory | Entered Lower Caves 4780 | -6/Lower Caves | Build established: Scavenger-Gunner 4827 | -6/Lower Caves | Discovered new exit (range 12) 4863 | -6/Lower Caves | Entered another Lower Caves area 5124 | -6/Lower Caves | Discovered new exit (range 7) 5144 | -6/Lower Caves | Found DRS Beacon 5152 | -6/Lower Caves | Entered Data Miner 5154 | -6/Data Miner | Discovered new exit (range 6) 5164 | -6/Data Miner | Met Data Miner 5188 | -6/Data Miner | Learned location of Section 7 (-2) 5188 | -6/Data Miner | Acquired the access code to Warlord's prototype stash 5206 | -6/Data Miner | Received God Mode back door access code from Data Miner 5242 | -6/Data Miner | Entered Proximity Caves 5417 | -5/Proximity Caves | Discovered exit to Factory (range 8) 5425 | -5/Proximity Caves | Entered Factory 5425 | -5/Factory | Evolved 2 slots: Power x1, Utility x1 5778 | -5/Factory | Build established: Scavenger-Mutant 5973 | -5/Factory | Sucked down chute 5973 | -5/Factory | Entered Waste 5988 | -5/Waste | EMP discharged 5988 | -5/Waste | System corruption reached 10% 5988 | -5/Waste | Spotted C-40 Crusher 5991 | -5/Waste | Spotted C-40 Crusher 5997 | -5/Waste | Spotted C-40 Crusher 6046 | -5/Waste | Spotted C-40 Crusher 6080 | -5/Waste | Spotted C-40 Crusher 6088 | -5/Waste | EMP discharged 6090 | -5/Waste | Discovered new exit (range 23) 6097 | -5/Waste | Spotted C-40 Crusher 6159 | -5/Waste | Entered Factory 6647 | -5/Factory | Lost 6 parts (1n3u2w) 6715 | -5/Factory | Scrapoids reinforcements arrived? 6755 | -5/Factory | System corruption reached 30% 6820 | -5/Factory | Found Scrap Suit 6850 | -5/Factory | Cargo convoy interrupted 6853 | -5/Factory | Found Prototype Launcher 6853 | -5/Factory | Identified Hellfire Missile Launcher 6855 | -5/Factory | Found Prototype Launcher 6886 | -5/Factory | Found Prototype Launcher 6886 | -5/Factory | Identified Enh. Gamma Bomb Array (x2) 6893 | -5/Factory | Lost 3 allies 6899 | -5/Factory | Destroyed 7 combat bots 6908 | -5/Factory | Lost 3 parts (1p1u1w) 7013 | -5/Factory | Loaded intel: 7 recycling unit locations 7059 | -5/Factory | First assault squad dispatched 7074 | -5/Factory | Incoming assault squad redirected 7120 | -5/Factory | Build established: Scavenger-Scrapper 7197 | -5/Factory | Scrapoids reinforcements arrived? 7247 | -5/Factory | Lost 3 allies 7323 | -5/Factory | Discovered new exit (range 5) 7324 | -5/Factory | Core integrity fell below 50% 7369 | -5/Factory | Core integrity fell below 20% 7382 | -5/Factory | Incoming assault squad redirected 7391 | -5/Factory | Found Corrupted Scrap Suit 7396 | -5/Factory | Entered another Factory area 7396 | -4/Factory | Evolved 2 slots: Utility x1, Weapon x1 7411 | -4/Factory | Lost 8 parts (2p1n3u2w) 7883 | -4/Factory | Build established: Mutant 7954 | -4/Factory | System corruption reached 10% 8221 | -4/Factory | Sucked down chute 8221 | -4/Factory | Entered Waste 8222 | -4/Waste | Met a frightened Derelict 8228 | -4/Waste | Spotted C-40 Crusher 8244 | -4/Waste | Lost 7 parts (1p2n3u1w) 8249 | -4/Waste | Spotted C-40 Crusher 8269 | -4/Waste | Spotted C-40 Crusher 8270 | -4/Waste | Spotted C-40 Crusher 8274 | -4/Waste | Spotted C-40 Crusher 8288 | -4/Waste | Warlord forces began an assault 8305 | -4/Waste | Allies destroyed C-40 Crusher 8306 | -4/Waste | Spotted C-40 Crusher 8308 | -4/Waste | Allies destroyed C-40 Crusher 8312 | -4/Waste | Allies destroyed C-40 Crusher 8317 | -4/Waste | Allies destroyed C-40 Crusher 8318 | -4/Waste | Allies destroyed C-40 Crusher 8346 | -4/Waste | Lost 4 allies 8495 | -4/Waste | Discovered new exit (range 12) 8969 | -4/Waste | Entered Factory 8969 | -4/Factory | Accompanied by 13 allies 9005 | -4/Factory | Build established: Derelict-Tank 9196 | -4/Factory | Identified exit to DSF 9222 | -4/Factory | Garrison activated, responded to threat 9340 | -4/Factory | Found Quantum Capacitor 9388 | -4/Factory | Identified exit to Garrison 9388 | -4/Factory | Entered Garrison 9388 | -4/Garrison | Accompanied by 9 allies 9441 | -4/Garrison | Found Quantum Capacitor 9614 | -4/Garrison | Found Relay Coupler [Proto] 9617 | -4/Garrison | Found Relay Coupler [Proto] 9621 | -4/Garrison | Found Relay Coupler [Proto] 9624 | -4/Garrison | Found Relay Coupler [Proto] 9674 | -4/Garrison | Found Quantum Capacitor 9794 | -4/Garrison | Triggered checkpoint 9945 | -4/Garrison | Build established: Tank 9976 | -4/Garrison | Core integrity fell below 50% 9978 | -4/Garrison | Spotted B-86 Titan 9995 | -4/Garrison | Destroyed B-86 Titan 10016 | -4/Garrison | Lost 4 allies 10030 | -4/Garrison | Triggered checkpoint 10153 | -4/Garrison | Lost 3 allies 10178 | -4/Garrison | Discovered new exit (range 69) 10178 | -4/Garrison | Discovered new exit (range 50) 10178 | -4/Garrison | Discovered new exit (range 12) 10208 | -4/Garrison | Triggered checkpoint 10289 | -4/Garrison | Garrison Relay disabled 10344 | -4/Garrison | Learned Factory security intel 10380 | -4/Garrison | Rescued a captive Derelict 10381 | -4/Garrison | Rescued a captive Derelict 10591 | -4/Garrison | Build established: Scavenger-Tank 10815 | -4/Garrison | Lost 3 parts (1n2u) 10869 | -4/Garrison | Lost 7 parts (2p1n2u2w) 10908 | -4/Garrison | Installed Relay Interface Framework 11153 | -4/Garrison | Lost 3 parts (2n1w) 11306 | -4/Garrison | Expanded RIF knowledge: Patrol Navigation 11412 | -4/Garrison | Build established: Scavenger-Gunner 11774 | -4/Garrison | Core integrity fell below 20% 11826 | -4/Garrison | Triggered checkpoint 11832 | -4/Garrison | Garrison Relay disabled 12116 | -4/Garrison | Found Quantum Capacitor 12174 | -4/Garrison | Garrison Relay disabled 12326 | -4/Garrison | Triggered checkpoint 12406 | -4/Garrison | Triggered checkpoint 12443 | -4/Garrison | Entered Factory 12761 | -4/Factory | System corruption reached 30% 12788 | -4/Factory | Destroyed self with Enhanced Gamma Bomb Array Last Messages --------------- 12771_ D-63 Destroyer unfolds itself. 12774_ Dropped Energy Well. 12775_ Extracted 350 energy. 12776_ Hvy. Mass Driver destroyed. 12779_ KO3G4J&IKM QMWYDV>E 12783_ G-67 Veteran destroyed. 12785_ The unstable cave ceiling collapses. 12785_ P-70 Sage destroyed. 12785_ Destroyed Field Laser. 12785_ G-67 Veteran destroyed. Map ----- +----------------------------------------------------+ | ! # ????????????? | | + ?????????????? | | # ?????????????? | | # ?????????????? | | # ????????????? | | #???????????????? | | ######################## #???????????????? | | ???????????????????????# #???????????????? | | ???????????????????????# #???????????????? | | ???????????????????????# #???????????????? | | ???????????????????????# #???????????????? | | ???????????????????????# = #??####?????????? | | ???????????????????????#!%= ####T ##????????? | | ???????????????????????#%= ?????????? | | ???????????????????????#!% #######????????? | | ???????????????????????# """#??????????????? | | ???????????????????????# """#??????????????? | | ???????????????????????# "#??????????????? | | ???????????????????????# = "F"#???#??????????? | | ???????????????????????# """#???# ?????????? | | ???????????????????????# #???# ?????????? | | ???????????????????????# ##### ""? ?????? | | ???????????????????????# """ # ?????? | | ???????????????????????# """ # ""? ?????? | | ???????????????????????# """ + "????????? | | ???????????????????????# @ # ""? ?????? | | ???????????????????????#= # ?????? | | ?????????????????????### ###### ^ # ?????? | | ?????????????????????# ! [ # # ?????? | | ?????????????????????# ["""" + # ?????? | | ???????????#####/#### "R"" # #######????? | | ???????????+ %= " " ## ######??????????? | | ???????????# = % !## #???????????????? | | ???????????# %= ######## #???????????????? | | ???????????# ?????###+##########??????? | | ???????????# % =g! #?????# #??????? | | ???????????# = #?????# #??????? | | ???????????# ! w ; #?????# #??????? | | ???????????# %= ; #?????# """" """" #??????? | | ?????????#######/###########?# """" """" #??????? | | ???????### [ #?# """" """" #??????? | | ?????????+ = #?# """" """" ######## | | ???????### #?# """" """" #??????? | | ?????????# """ """ """ """ #?# """" """" # | | ?????????# """ """ """ """ #?# # | | ?????????# """ """ """ """ #?# # | | ?????????# #?# # | | ?????????#########+###################+#### | | ???????????????# ^ # | | ?????########### # | +----------------------------------------------------+ Best States ------------- Heat Dissipation 138 Coolant Potential 80 Energy Generation 37 Energy Capacity 525 Matter Stores 300 Matter Capacity 300 Sight Range 24 Robot Scan Range 15 Terrain Scan Density 10 Jamming Range 16 Base Temperature (-) 150 Corruption Containment 20 Armor Coverage 755 Resistance: KI 20 Weapon Cycling 20 Evasion (%) 57 Targeting Accuracy 6 Launcher Accuracy 40 Recoil Reduction 2 Matter Filtering 30 Salvage Targeting 2 Offensive Hacking 14 Relay Coupler Types 2 Relay Coupler Value 51 Item Schematics ----------------- Combat Drone Bay | -6/Data Miner | Free Lgt. Regenerative Plating | -6/Data Miner | Free Cld. Gravmag System | -6/Data Miner | Free Imp. Matter Compressor | -6/Data Miner | Free Hvy. Gatling Laser | -6/Data Miner | Free Centrium Wheel | -6/Data Miner | Free Adv. Target Analyzer | -6/Data Miner | Free Hardcell Cannon | -6/Data Miner | Free Robot Schematics ------------------ S-27 Virus | -6/Data Miner | Free I-47 Archangel | -6/Data Miner | Free Y-54 Guardian | -6/Data Miner | Free G-50 Soldier | -6/Data Miner | Free A-15 Conveyor | -6/Data Miner | Free Fabricated ------------ Nothing Repaired ---------- Nothing Alien Tech Used ----------------- None Achievements -------------- None Challenges ------------ None Game ------ Seed AdvancedNeutrinoWarhead Manual? 0 Play Time 01:48:05 Cumulative 323.0 hours Start 2025.06.16 @ 17:21:15 End 2025.06.17 @ 17:52:42 Sessions 5 Manual Loads 0 Difficulty Rogue Special Mode None Game No. 310 Rogue 274 Adventurer 36 Explorer 0 Win Type - Total 11 Types 4/0/7/0/0/0/0/0/0/0 Lore% 69 Gallery% 81 Achievement% 74 Wizard Run 0 Options --------- Layout 0 ASCII 0 Keyboard 0 Movement Mouse Keybinds 0 Fullscreen 1 Font 18/SmallcapsGlow Map View 76x50 Zoom Use 0% Tactical HUD 1 Map Filters NONE Filters NONE Steam 1 RUN: a37b449d-418d-4d63-a5f9-4eb4be549da1